Cogmind - Beta 15 @@@ ROGUE MODE // 2025.07.12 @ 22:09:25 Player: Rockstar Result: Destroyed by S-43 Plague with Heavy Machine Gun Performance ------------- Evolutions (7) 3500 Regions Visited (14) 2800 Robots Destroyed (101) 505 Value Destroyed (4742) 4742 Prototype IDs (6) 120 Alien Tech Used (0) 0 Bonus (2132) 2132 TOTAL SCORE: 13799 Bonus ------- Triggered Max Security 1000 High Alert Combat Kills 15 Follower Combat Kills 317 Entered DSFs 500 Aligned with FarCom 300 Cogmind --------- Core Integrity 0/1300 Matter 114/300 Energy 17/100 System Corruption 20% Temperature Cool (2) Movement Flying (40) Location -3/Testing Parts ------- > --- POWER (3) -------- (None) > --- PROPULSION (4) --- Q-thruster > --- UTILITY (11) ----- (None) > --- WEAPON (3) ------- (None) > --- INVENTORY (5) ---- Improved Antigrav System Thunder Hammer Thunder Hammer Thunder Hammer Peak State ------------ > --- POWER ------------ Light Antimatter Reactor Hybrid Antimatter Reactor Micro Antimatter Reactor > --- PROPULSION ------- Flexi-carbon Leg Flexi-carbon Leg Flexi-carbon Leg Myomer Leg > --- UTILITY ---------- Advanced Heat Sink Advanced Heat Sink Advanced Cooling System Large Storage Unit Improved Signal Interpreter Advanced Targeting Computer Advanced Weapon Cycler Transmission Jammer Layered Medium Armor Plating Improved Thermal Shield > --- WEAPON ----------- Gamma Rifle Enhanced Gauss Cannon Hardcell Cannon > --- INVENTORY -------- Fission Core Fission Core Fission Core Neutrino Core Micro Antimatter Reactor Flexi-carbon Leg Advanced Assault Cannon Heavy Missile Launcher [Rating: 115] Favorites ----------- Power Enhanced Nuclear Core Engine Light Ion Engine Power Core Enhanced Nuclear Core Reactor Hybrid Antimatter Reactor Propulsion Armored Treads Treads Armored Treads Leg Shield Leg Hover Unit Antigrav Array Flight Unit Q-thruster Utility Large Storage Unit Device Improved Heat Sink Storage Large Storage Unit Processor Advanced Targeting Computer Protection Hardened Medium Armor Plating Weapon Autogun Energy Gun Variable Charge Gun Energy Cannon Beam Cannon Ballistic Gun Autogun Ballistic Cannon Advanced Assault Cannon Launcher Heavy Missile Launcher Special Weapon Field Lobotomy Kit Impact Weapon Hammer Slashing Weapon Axe Build | -11 -10 -10 -10 -9 -8 -7 -7 -7 -6 -6 -5 -4 -3 -3 ------- Run | Yrd Mat Min Exi Min Mat Fac Low Low Fac DSF Fac Fac Res Tes Slots Evolved 14 | . . . . . 4 2 . . 2 . 2 2 2 . Power 2 | . . . . . 1 . . . . . . . 1 . Propulsion 2 | . . . . . . . . . . . 2 . . . Utility 9 | . . . . . 2 2 . . 2 . . 2 1 . Weapon 1 | . . . . . 1 . . . . . . . . . Parts Attached 134 | 6 8 3 6 . 28 13 6 . 3 7 5 23 18 8 Power 30 | 1 1 2 . . 11 3 2 . . 2 . 3 5 . Engine 9 | 1 . 2 . . 4 . 2 . . . . . . . Core 16 | . 1 . . . 7 3 . . . 2 . 1 2 . Reactor 5 | . . . . . . . . . . . . 2 3 . Propulsion 38 | 2 1 1 1 . 6 2 2 . 2 . . 10 6 5 Treads 15 | 2 1 1 1 . 4 2 2 . 2 . . . . . Leg 17 | . . . . . 2 . . . . . . 10 5 . Wheel . | . . . . . . . . . . . . . . . Hover 5 | . . . . . . . . . . . . . 1 4 Flight 1 | . . . . . . . . . . . . . . 1 Utility 35 | 1 2 . 4 . 4 6 . . 1 2 2 8 5 . Device 24 | . 1 . 1 . 4 3 . . . 2 2 7 4 . Storage 4 | 1 . . 3 . . . . . . . . . . . Processor 4 | . 1 . . . . 2 . . . . . 1 . . Hackware . | . . . . . . . . . . . . . . . Protection 3 | . . . . . . 1 . . 1 . . . 1 . Artifact . | . . . . . . . . . . . . . . . Weapon 31 | 2 4 . 1 . 7 2 2 . . 3 3 2 2 3 Energy Gun 4 | . . . . . . . 1 . . . 2 . 1 . Energy Cannon 1 | . 1 . . . . . . . . . . . . . Ballistic Gun 8 | 2 . . . . 5 1 . . . . . . . . Ballistic Cannon 9 | . 2 . . . . . . . . 3 1 2 1 . Launcher 1 | . . . . . . . 1 . . . . . . . Special Weapon 3 | . . . 1 . 1 . . . . . . . . 1 Impact Weapon 3 | . 1 . . . 1 . . . . . . . . 1 Slashing Weapon 2 | . . . . . . 1 . . . . . . . 1 Piercing Weapon . | . . . . . . . . . . . . . . . Special Melee Weapon . | . . . . . . . . . . . . . . . Unidentified Prototypes 6 | . . . 3 . . 1 . . . . . . . 2 Corrupted Parts 1 | . . . . . . . . . . . . . 1 . System Corruption 8 | . . . . . . . . . . . . . 8 . Parts Lost 77 | . . 3 . . 14 1 7 . . . . 13 29 10 Power 17 | . . 2 . . 6 1 1 . . . . 1 3 3 Propulsion 23 | . . 1 . . 4 . . . . . . 6 9 3 Utility 20 | . . . . . 1 . 3 . . . . 5 9 2 Weapon 17 | . . . . . 3 . 3 . . . . 1 8 2 Highest Loss Streak 19 | . . 2 . . 7 1 7 . . . . 11 19 9 To Critical Strikes 2 | . . . . . 1 . . . . . . 1 . . Average Backups 11 | 1 6 7 7 11 12 14 12 10 7 11 9 13 6 6 Power 2 | . 1 . . . 1 1 2 1 1 1 2 3 3 1 Propulsion 2 | . 2 1 . 1 1 2 3 3 3 3 1 2 . 2 Utility 3 | . 1 3 3 5 5 4 3 3 . . . 1 . . Weapon 2 | . 1 2 2 4 2 1 . . 1 4 5 5 3 2 Tool/Special . | . . . . . . . . . . . . . . . Unused Backups 16 | . 3 . . . 2 3 2 . . . 1 2 . 3 Power 1 | . . . . . . . . . . . . 1 . . Propulsion 1 | . 1 . . . . . . . . . . . . . Utility 7 | . 1 . . . 2 2 2 . . . . . . . Weapon 5 | . 1 . . . . 1 . . . . . . . 3 Tool/Special 2 | . . . . . . . . . . . 1 1 . . Average Slot Usage (%) 90 | . 94 99 89 71 93 99 78 76 84 88 99 98 85 30 Engine 3 | . 11 9 14 14 7 . 1 15 13 4 . . . . Core 7 | . 2 4 . . 7 14 6 . . 8 11 5 4 4 Reactor 1 | . . . . . . . . . . . . 4 7 1 Treads 15 | . 28 27 28 28 14 15 15 15 13 13 22 11 . . Leg 2 | . . . . . 2 . . . . . . 9 16 . Device 16 | . 6 . . . 17 22 9 . 5 14 17 30 27 3 Storage 7 | . 14 14 13 14 9 7 7 7 6 6 5 4 3 2 Processor 11 | . 3 14 14 14 9 14 15 15 13 13 11 10 8 3 Protection 1 | . . . . . . . . . 12 13 11 3 . . Energy Gun 1 | . . . . . . . 3 7 6 . 2 5 1 . Energy Cannon 2 | . 1 . . . 5 7 3 . . . . . . . Ballistic Gun 6 | . 16 . . . 10 14 6 . . . . . . . Ballistic Cannon 5 | . 3 28 17 . . . . . . 10 14 8 10 . Impact Weapon 1 | . 6 . . . 8 . . . . . . . . 3 Peak Build Rating 115 | 6 12 12 15 9 32 46 46 43 54 59 73 108 115 74 Average Rating 44 | 4 7 10 8 7 20 42 37 42 53 52 66 93 97 52 On Entrance 33 | . 6 12 9 7 9 30 46 37 43 54 59 73 88 31 Naked Turns 4 | . . . . . . . . . . . . . . 4 Heaviest Build 95 | 13 18 18 51 28 43 52 55 60 72 75 77 85 95 45 Greatest Support 107 | 40 40 40 40 40 56 48 43 43 56 56 107 107 95 52 Greatest Overweight (x) 4 | . . . 1 . 3 1 1 1 1 1 . 3 4 1 Average Overweight (x) . | . . . . . . 1 . 1 1 1 . . . . Largest Inventory Capacity 20 | 8 8 8 20 15 15 15 15 15 15 15 15 15 15 15 Average Capacity 13 | 7 8 8 12 15 15 15 15 15 15 15 15 14 14 10 Most Carried 15 | 2 8 8 11 11 15 15 15 10 9 14 12 15 9 11 Average Carried 11 | 1 7 7 7 10 12 14 12 10 7 11 9 13 6 6 Final Capacity 15 | 8 8 8 15 15 15 15 15 15 15 15 15 15 5 5 Final Carried 15 | 2 8 6 11 9 14 15 10 10 7 12 12 15 5 4 Class Distribution -------------------- 32% | Mutant 27% | Scavenger-Gunner 22% | Gunner 5% | Assassin 5% | Scavenger-Assassin Dominant Class ---------------- Mutant | -10/Materials Mutant | -10/Mines Mutant | -10/Exiles Mutant | -9/Mines Assassin | -8/Materials Scavenger-Gunner | -7/Factory Mutant | -7/Lower Caves Gunner | -7/Lower Caves Tank | -6/Factory Gunner | -6/DSF Gunner | -5/Factory Gunner | -4/Factory Scavenger-Gunner | -3/Research Mutant | -3/Testing Resources | -11 -10 -10 -10 -9 -8 -7 -7 -7 -6 -6 -5 -4 -3 -3 ----------- Run | Yrd Mat Min Exi Min Mat Fac Low Low Fac DSF Fac Fac Res Tes Matter Collected 3992 | 217 117 115 . . 694 497 221 . . 66 217 1042 657 149 Remotely 1269 | . . . . . . . . . . . . 909 360 . Salvage Created 3499 | . 195 77 . . 803 592 261 . . 113 108 635 657 58 Parts 171 | . 12 9 . . 43 30 13 . . 3 2 33 24 2 Haulers Intercepted . | . . . . . . . . . . . . . . . Recyclers Shooed 1 | . . . . . . . . . . . . . 1 . Parts Field Recycled . | . . . . . . . . . . . . . . . Retrieved Matter . | . . . . . . . . . . . . . . . Parts Self-Destructed 9 | . . . . . . . 9 . . . . . . . Prevented . | . . . . . . . . . . . . . . . Kills | -11 -10 -10 -10 -9 -8 -7 -7 -7 -6 -6 -5 -4 -3 -3 ------- Run | Yrd Mat Min Exi Min Mat Fac Low Low Fac DSF Fac Fac Res Tes Combat Hostiles Destroyed 93 | . 5 9 . . 20 14 8 . . 1 4 19 12 1 Melee 12 | . 2 . . . 6 . 1 . . . . 1 1 1 Guns 21 | . . . . . 10 6 2 . . . . 3 . . Cannons 43 | . 2 9 . . 1 7 . . . 1 4 13 6 . AOE 11 | . . . . . . . 5 . . . . 2 4 . Classes Destroyed 15 | . 1 2 . . 3 3 1 . . . . 2 2 1 Builder 3 | . . . . . . . . . . . . 3 . . Recycler 1 | . . . . . . . . . . . . . 1 . Mechanic 1 | . . . . . . . . . . . . . 1 . Watcher 3 | . . . . . . 1 . . . . 1 . . 1 Swarmer 21 | . . 6 . . 6 3 1 . . . . 5 . . Saboteur 1 | . . . . . . . . . . . . . . 1 Grunt 40 | . 5 2 . . 9 7 4 . . 1 3 4 5 . Brawler 2 | . . . . . . 1 1 . . . . . . . Duelist 1 | . . . . . . . 1 . . . . . . . Sentry 6 | . . . . . 2 . 1 . . . 1 2 . . Demolisher 1 | . . 1 . . . . . . . . . . . . Specialist 4 | . . . . . 2 . . . . . . 2 . . Hunter 8 | . . . . . . . . . . . . 4 4 . Programmer 8 | . . . . . . 3 . . . . . 2 3 . Heavy 1 | . . . . . 1 . . . . . . . . . Best Kill Streak 13 | . 3 5 . . 4 3 5 . . 1 2 13 4 1 Combat Bots Only 6 | . 3 5 . . 4 3 5 . . 1 2 6 4 1 Max Kills in Single Turn 2 | . 1 1 . . 1 1 2 . . 1 1 2 2 1 Gunslinging . | . . . . . . . . . . . . . . . Exploded 2 | . . . . . . . 2 . . . . 1 1 . Melee 1 | . 1 . . . 1 . 1 . . . . 1 1 1 Uniques/NPCs Destroyed . | . . . . . . . . . . . . . . . Combat | -11 -10 -10 -10 -9 -8 -7 -7 -7 -6 -6 -5 -4 -3 -3 -------- Run | Yrd Mat Min Exi Min Mat Fac Low Low Fac DSF Fac Fac Res Tes Hostile Shots Fired 1446 | . 35 60 . . 233 47 53 2 . 16 29 514 282 175 Missed 515 | . 7 10 . . 78 14 11 . . 6 10 203 110 66 Deflected 33 | . . . . . . . . . . . . 33 . . Hits 931 | . 28 50 . . 155 33 42 2 . 10 19 311 172 109 Melee 7 | . . . . . . . 6 . . . . . . 1 Projectile 924 | . 28 50 . . 155 33 36 2 . 10 19 311 172 108 AOE 7 | . . 7 . . . . . . . . . . . . Critical Strikes 33 | . . 2 . . 6 3 6 . . . 2 9 3 2 Part Disruptions 2 | . . . . . . . . . . . . 1 1 . Damage Taken 14417 | . 354 598 . . 2140 626 1054 36 . 204 416 3249 3645 2095 Core 2375 | . 60 74 . . 341 155 224 . . 38 61 105 501 816 Absorbed by Shields 648 | . . . . . . . . . . . . 648 . . Ignored by Resistances 90 | . . . . . . . . . . . . . 90 . Regen/Repaired (Parts) 195 | . 11 . . . . . . . . . . 184 . . Core Remaining (%) 72 | 100 . . . 46 38 . . 45 . 95 93 90 . . Volleys Fired 219 | . 5 23 . . 39 30 13 2 . 6 14 52 35 . Largest 3 | . 2 2 . . 3 3 3 1 . 3 3 3 3 . Hottest 205 | . 80 66 . . 106 111 120 . . 120 155 205 177 . Shots Fired 538 | . 10 46 . . 86 92 27 2 . 12 42 144 77 . Gun 198 | . 5 . . . 66 61 14 . . . 2 40 10 . Cannon 321 | . 5 46 . . 20 31 7 . . 10 40 101 61 . Launcher 14 | . . . . . . . 5 . . . . 3 6 . Special 5 | . . . . . . . 1 2 . 2 . . . . Kinetic 399 | . 5 46 . . 66 61 9 . . 10 40 101 61 . Thermal 110 | . 5 . . . 20 31 12 . . . 2 40 . . Explosive 14 | . . . . . . . 5 . . . . 3 6 . Electromagnetic 10 | . . . . . . . . . . . . . 10 . Robot Hit Streak 25 | . 5 6 . . 19 21 18 20 . 25 9 12 11 . Robot Miss Streak 7 | . 1 4 . . 2 4 7 . . 1 4 3 3 . Penetration Max . | . . . . . . . . . . . . . . . Secondary Targets 2 | . . . . . 2 . . . . . . . . . Max Gunslinging Chain 1 | . . . . . 1 . . . . . . . . . Shots Hit Robots 417 | . 15 26 . . 95 61 27 2 . 10 28 96 55 2 Core Hits 190 | . 6 11 . . 28 42 17 . . 4 10 45 26 1 Critical Kills 3 | . . . . . 2 1 . . . . . . . . Critical Parts Destroyed 5 | . 1 . . . 3 . . . . . . . . 1 Critical Strikes 27 | . 1 1 . . 6 1 3 . . 1 3 5 5 1 Burn 1 | . . . . . . . 1 . . . . . . . Meltdown 1 | . . . . . . 1 . . . . . . . . Destroy 1 | . . . . . 1 . . . . . . . . . Blast 14 | . . 1 . . . . . . . 1 3 5 4 . Smash 7 | . 1 . . . 5 . . . . . . . . 1 Sever 3 | . . . . . . . 2 . . . . . 1 . Melee Attacks 73 | . 10 . . . 42 3 3 . . . . 5 4 6 Thermal 3 | . . . . . . . . . . . . . . 3 Impact 55 | . 10 . . . 42 . . . . . . . . 3 Slashing 15 | . . . . . . 3 3 . . . . 5 4 . Piercing . | . . . . . . . . . . . . . . . Sneak Attacks 1 | . . . . . . . . . . . . . . 1 Combat Hostiles . | . . . . . . . . . . . . . . . Follow-up Attacks . | . . . . . . . . . . . . . . . Damage Inflicted 12533 | . 321 557 . . 2137 1152 1115 . . 303 832 3495 2441 180 Guns 2586 | . 39 . . . 775 696 273 . . . . 655 148 . Cannons 6402 | . 89 557 . . 283 456 106 . . 303 832 2200 1576 . Explosions 1750 | . . . . . . . 635 . . . . 524 591 . Melee 1723 | . 193 . . . 1079 . 101 . . . . 78 120 152 Ramming 72 | . . . . . . . . . . . . 38 6 28 Kinetic 7130 | . 39 557 . . 775 696 152 . . 303 832 2200 1576 . Thermal 1710 | . 89 . . . 283 456 227 . . . . 655 . . Explosive 1750 | . . . . . . . 635 . . . . 524 591 . Electromagnetic 148 | . . . . . . . . . . . . . 148 . Impact 1424 | . 193 . . . 1079 . . . . . . . . 152 Slashing 299 | . . . . . . . 101 . . . . 78 120 . Piercing . | . . . . . . . . . . . . . . . Highest Corruption 20 | . . . . . . 2 2 2 . . . 8 15 20 Average Corruption 3 | . . . . . . 1 2 2 . . . 4 7 16 Corruption Purged . | . . . . . . . . . . . . . . . Corruption Blocked . | . . . . . . . . . . . . . . . Effects 75 | . . . . . . 13 25 . . . . 15 8 14 Message Errors 17 | . . . . . . 1 7 . . . . 3 1 5 Matter Fused 20 | . . . . . . 4 7 . . . . 3 4 2 Heat Flow Errors 6 | . . . . . . 1 2 . . . . . 1 2 Energy Discharges 9 | . . . . . . . 4 . . . . 2 . 3 Parts Rejected 1 | . . . . . . 1 . . . . . . . . Parts Fused 2 | . . . . . . 1 1 . . . . . . . Data Loss (minor) 7 | . . . . . . 2 2 . . . . 3 . . Data Loss (major) 3 | . . . . . . . 1 . . . . . 1 1 Misfires 5 | . . . . . . 2 1 . . . . 2 . . Alerts 2 | . . . . . . 1 . . . . . 1 . . Misdirections 1 | . . . . . . . . . . . . . . 1 Weapon Failures 2 | . . . . . . . . . . . . 1 1 . Overload Shots . | . . . . . . . . . . . . . . . Overflow Damage 434 | . 27 5 . . 193 . 28 . . . . 34 61 86 Projectiles 73 | . . 5 . . . . . . . . . 12 56 . Explosions 55 | . . . . . . . 28 . . . . 22 5 . Melee 306 | . 27 . . . 193 . . . . . . . . 86 Knockbacks 67 | . 3 6 . . 8 . . . . 4 1 18 26 1 Impact 11 | . 3 . . . 7 . . . . . . . . 1 Kinetic 47 | . . 6 . . . . . . . 4 1 16 20 . Secondary 9 | . . . . . 1 . . . . . . 2 6 . Self-Inflicted Damage 352 | . . . . . . 135 100 . . . . 48 55 14 Shots 10 | . . . . . . 4 3 . . . . 1 2 . Rammed 3 | . . . . . . . . . . . 1 . . 2 Targets Rammed 11 | . . . . . . . . . . . 1 6 2 2 Kicked 8 | . . . . . . . . . . . . 6 2 . Crushed . | . . . . . . . . . . . . . . . Highest Temperature 261 | . 153 197 . . 127 231 201 . . 34 172 9 160 261 Average Temperature 67 | . 83 76 . . 35 78 86 . . 14 61 9 24 127 Received Heat Transfer 2384 | . 198 90 . . 747 180 189 . . 84 171 170 387 168 Siege Activations . | . . . . . . . . . . . . . . . Martial Activations . | . . . . . . . . . . . . . . . Shielding Activations 1 | . . . . . . . . . . . . 1 . . Total Turns 46 | . . . . . . . . . . . . 46 . . Longest Duration 46 | . . . . . . . . . . . . 46 . . Robots Disrupted . | . . . . . . . . . . . . . . . Combat Hostiles . | . . . . . . . . . . . . . . . Robots Corrupted 6 | . 1 . . . 3 . . . . . . . 1 1 Combat Hostiles 5 | . 1 . . . 3 . . . . . . . 1 . Parts Fried 6 | . . . . . 5 . . . . . . . . 1 Impact Corruptions 13 | . 1 . . . 10 . . . . . . . . 2 Robots Melted 1 | . . . . . . 1 . . . . . . . . Combat Hostiles 1 | . . . . . . 1 . . . . . . . . Parts Melted 3 | . . . . . 2 1 . . . . . . . . Heat Transferred 3219 | . 185 . . . 592 925 481 . . . . 1036 . . Parts Sabotaged . | . . . . . . . . . . . . . . . Parts Stolen . | . . . . . . . . . . . . . . . Parts Stripped . | . . . . . . . . . . . . . . . Power Chain Reactions 1 | . . . . . . 1 . . . . . . . . Alert | -11 -10 -10 -10 -9 -8 -7 -7 -7 -6 -6 -5 -4 -3 -3 ------- Run | Yrd Mat Min Exi Min Mat Fac Low Low Fac DSF Fac Fac Res Tes Maximum Alert Level 5 | . . . . . . . . . . 1 . 1 . 5 Low Security (%) 94 | 100 100 100 . 100 100 100 . . 100 65 100 92 100 . Level 1 2 | . . . . . . . . . . 34 . 7 . . Level 2 . | . . . . . . . . . . . . . . . Level 3 . | . . . . . . . . . . . . . . . Level 4 . | . . . . . . . . . . . . . . . Level 5 . | . . . . . . . . . . . . . . . High Security . | . . . . . . . . . . . . . . . Max Security 3 | . . . . . . . . . . . . . . 99 Sterilizations 1 | . . . . . . . . . . 1 . . . . Peak Influence 1787 | . 60 92 . . 173 151 . . 15 223 116 294 148 1787 Initial 148 | . . 3 . . . 70 . . 1 3 116 14 148 29 Average 110 | . 13 38 . . 82 52 . . 3 106 74 41 66 1624 Influence Increases 3548 | . 138 230 . . 627 531 174 . 20 267 123 727 429 282 Destroy 0b10 Robot/C 2020 | . 100 180 . . 400 280 160 . . 180 80 380 240 20 Destroy 0b10 Robot/NC 50 | . . . . . . 5 . . . 10 5 15 10 5 Destroy Leader 386 | . 20 40 . . 90 52 10 . . 30 22 90 30 2 Allied During Kill 55 | . . 8 . . . . 4 . . 43 . . . . Successful Hack 117 | . 3 . . . . 19 . . 20 . . 75 . . Disable Machine 165 | . 15 . . . 15 105 . . . . . 15 15 . Destroy Structure 260 | . . 2 . . 2 40 . . . 4 16 122 74 . Partial Spotted 45 | . . . . . . 15 . . . . . 15 . 15 Lose Combat Pursuer 450 | . . . . . 120 15 . . . . . 15 60 240 Influence Decreases 3337 | . 128 218 22 . 472 568 250 39 18 49 317 472 661 123 Entered New Map 453 | . . 7 22 . . 85 45 9 2 2 107 15 136 23 Time Decay 2085 | . 128 165 . . 332 473 145 30 16 . 190 331 275 . Lost Part 696 | . . 10 . . 140 10 60 . . . . 126 250 100 Lost Ally 103 | . . 36 . . . . . . . 47 20 . . . Squads Dispatched 36 | . 1 . . . 5 5 . . . 2 . 8 3 12 Investigation 5 | . 1 . . . . 1 . . . . . 3 . . Extermination 7 | . . . . . . 3 . . . . . 2 2 . Reinforcement 12 | . . . . . 5 1 . . . 2 . 3 1 . Assault 12 | . . . . . . . . . . . . . . 12 Garrison . | . . . . . . . . . . . . . . . Intercept . | . . . . . . . . . . . . . . . Searches Triggered . | . . . . . . . . . . . . . . . Construction Impeded 1 | . . . . . . . . . . . . . 1 . Haulers Reinforced . | . . . . . . . . . . . . . . . Active Scanning Responses . | . . . . . . . . . . . . . . . Cargo Convoy Interrupts . | . . . . . . . . . . . . . . . Stealth | -11 -10 -10 -10 -9 -8 -7 -7 -7 -6 -6 -5 -4 -3 -3 --------- Run | Yrd Mat Min Exi Min Mat Fac Low Low Fac DSF Fac Fac Res Tes Distress Signals 10 | . 1 . . . 6 . . . . . . 1 2 . Communications Jammed 55 | . . . . . . . . . . . 1 49 5 . Distress Signals 55 | . . . . . . . . . . . 1 49 5 . Times Spotted 213 | . 10 10 . . 40 19 10 2 . 9 6 32 24 51 Peak Tracking Total 35 | . 3 3 . . 8 4 7 1 . 3 3 9 9 35 Tactical Retreats 13 | . 1 . . . 5 1 . . . . . 1 2 3 Traps | -11 -10 -10 -10 -9 -8 -7 -7 -7 -6 -6 -5 -4 -3 -3 ------- Run | Yrd Mat Min Exi Min Mat Fac Low Low Fac DSF Fac Fac Res Tes Traps Triggered 6 | . 1 . . . . . . . . . 1 2 1 1 Indirectly . | . . . . . . . . . . . . . . . Trap Hack Attempts . | . . . . . . . . . . . . . . . Triggered . | . . . . . . . . . . . . . . . Disarmed . | . . . . . . . . . . . . . . . Reprogrammed . | . . . . . . . . . . . . . . . Reused . | . . . . . . . . . . . . . . . Traps Extracted . | . . . . . . . . . . . . . . . Installed . | . . . . . . . . . . . . . . . Triggered . | . . . . . . . . . . . . . . . Machines | -11 -10 -10 -10 -9 -8 -7 -7 -7 -6 -6 -5 -4 -3 -3 ---------- Run | Yrd Mat Min Exi Min Mat Fac Low Low Fac DSF Fac Fac Res Tes Machines Disabled 12 | . 1 . . . 1 7 1 . . . . 1 1 . Max in Single Turn 2 | . 1 . . . 1 2 1 . . . . 1 1 . Machines Repaired . | . . . . . . . . . . . . . . . Machines Dismantled . | . . . . . . . . . . . . . . . Machines Sabotaged . | . . . . . . . . . . . . . . . Overloaded Fab Kills . | . . . . . . . . . . . . . . . Hacking | -11 -10 -10 -10 -9 -8 -7 -7 -7 -6 -6 -5 -4 -3 -3 --------- Run | Yrd Mat Min Exi Min Mat Fac Low Low Fac DSF Fac Fac Res Tes Machines Accessed 17 | . 2 1 . . . 6 . . 2 . 1 4 1 . Terminals 9 | . 1 1 . . . 3 . . 2 . 1 1 . . Fabricators 5 | . . . . . . 2 . . . . . 2 1 . Repair Stations 2 | . 1 . . . . . . . . . . 1 . . Recycling Units . | . . . . . . . . . . . . . . . Scanalyzers 1 | . . . . . . 1 . . . . . . . . Garrison Access . | . . . . . . . . . . . . . . . Total Hacks 38 | . 6 1 . . . 9 . . 3 . 2 16 1 . Successful 15 | . 2 . . . . 3 . . 2 . . 8 . . Failed 23 | . 4 1 . . . 6 . . 1 . 2 8 1 . Catastrophic 6 | . . 1 . . . 2 . . . . . 2 1 . Database Lockouts . | . . . . . . . . . . . . . . . Manual 14 | . 3 1 1 . . 6 . . 1 . 2 . . . Terminals 22 | . 3 1 . . . 5 . . 3 . 2 8 . . Fabricators 9 | . . . . . . 3 . . . . . 5 1 . Repair Stations 6 | . 3 . . . . . . . . . . 3 . . Recycling Units . | . . . . . . . . . . . . . . . Scanalyzers 1 | . . . . . . 1 . . . . . . . . Garrison Access . | . . . . . . . . . . . . . . . Terminal Hacks 8 | . . . . . . 1 . . 2 . . 5 . . Record 5 | . . . . . . . . . 1 . . 4 . . Open DSF 1 | . . . . . . . . . 1 . . . . . Alert Level 1 | . . . . . . . . . . . . 1 . . Zone Layout 1 | . . . . . . 1 . . . . . . . . Fabricator Hacks 2 | . . . . . . 1 . . . . . 1 . . Network Status 1 | . . . . . . 1 . . . . . . . . Build 1 | . . . . . . . . . . . . 1 . . Repair Station Hacks 4 | . 2 . . . . . . . . . . 2 . . Scan Component 2 | . 1 . . . . . . . . . . 1 . . Repair 2 | . 1 . . . . . . . . . . 1 . . Recycling Unit Hacks . | . . . . . . . . . . . . . . . Scanalyzer . | . . . . . . . . . . . . . . . Garrison Access Hacks . | . . . . . . . . . . . . . . . Unauthorized Hacks 1 | . . . . . . 1 . . . . . . . . Terminals . | . . . . . . . . . . . . . . . Fabricators 1 | . . . . . . 1 . . . . . . . . Haulers 1 | . . . . . . 1 . . . . . . . . Repair Stations . | . . . . . . . . . . . . . . . Recycling Units . | . . . . . . . . . . . . . . . Scanalyzers . | . . . . . . . . . . . . . . . Garrison Access . | . . . . . . . . . . . . . . . Data Cores Recovered . | . . . . . . . . . . . . . . . Used . | . . . . . . . . . . . . . . . Hacking Detections 14 | . 1 1 . . . 5 . . 1 . 1 4 1 . Full Trace Events 4 | . . . . . . 1 . . . . . 3 . . Feedback Events 1 | . . . . . . . . . . . . 1 . . Corruption 1 | . . . . . . . . . . . . 1 . . Feedback Blocked . | . . . . . . . . . . . . . . . Robot Schematics Acquired . | . . . . . . . . . . . . . . . Robots Built . | . . . . . . . . . . . . . . . Authchips . | . . . . . . . . . . . . . . . Time . | . . . . . . . . . . . . . . . Total Robot Build Rating . | . . . . . . . . . . . . . . . Part Schematics Acquired . | . . . . . . . . . . . . . . . Parts Built 1 | . . . . . . . . . . . . 1 . . Authchips . | . . . . . . . . . . . . . . . Time 58 | . . . . . . . . . . . . 58 . . Total Part Build Rating 7 | . . . . . . . . . . . . 7 . . Parts Repaired 2 | . 1 . . . . . . . . . . 1 . . Time 34 | . 26 . . . . . . . . . . 8 . . Parts Recycled . | . . . . . . . . . . . . . . . Recycled Matter . | . . . . . . . . . . . . . . . Retrieved Matter . | . . . . . . . . . . . . . . . Retrieved Components . | . . . . . . . . . . . . . . . Parts Scanalyzed . | . . . . . . . . . . . . . . . Part Schematics Acquired . | . . . . . . . . . . . . . . . Parts Damaged . | . . . . . . . . . . . . . . . Bothacking | -11 -10 -10 -10 -9 -8 -7 -7 -7 -6 -6 -5 -4 -3 -3 ------------ Run | Yrd Mat Min Exi Min Mat Fac Low Low Fac DSF Fac Fac Res Tes Used RIF Installer . | . . . . . . . . . . . . . . . Robots Hacked . | . . . . . . . . . . . . . . . Non-combat . | . . . . . . . . . . . . . . . Combat . | . . . . . . . . . . . . . . . Robot Hacks Applied . | . . . . . . . . . . . . . . . Relay Couplers Released . | . . . . . . . . . . . . . . . Fabnet Peak Effective % . | . . . . . . . . . . . . . . . Robots Rewired . | . . . . . . . . . . . . . . . Allies Hacked . | . . . . . . . . . . . . . . . Hacks Repelled . | . . . . . . . . . . . . . . . Allies | -11 -10 -10 -10 -9 -8 -7 -7 -7 -6 -6 -5 -4 -3 -3 -------- Run | Yrd Mat Min Exi Min Mat Fac Low Low Fac DSF Fac Fac Res Tes Total Allies 7 | . . 2 . . . . 1 2 . 2 . . . . Largest Group 5 | . . 2 . . . . 1 3 3 5 1 . . . Highest-Rated Group 195 | . . 43 . . . . 20 62 62 195 43 . . . Highest-Rated Ally 90 | . . 31 . . . . 20 21 21 90 43 . . . Initial Warlord ECA Mod 31 | . . . . . . . . . . . 9 8 7 7 Total Orders . | . . . . . . . . . . . . . . . Ally Attacks 40 | . . 2 . . . . 1 2 . 33 2 . . . Total Damage 1163 | . . 42 . . . . . . . 1076 45 . . . Kills 8 | . . . . . . . . . . 8 . . . . Allies Corrupted . | . . . . . . . . . . . . . . . Allies Melted . | . . . . . . . . . . . . . . . Field Lobotomies 5 | . . . . . . . 1 2 . 2 . . . . Intel | -11 -10 -10 -10 -9 -8 -7 -7 -7 -6 -6 -5 -4 -3 -3 ------- Run | Yrd Mat Min Exi Min Mat Fac Low Low Fac DSF Fac Fac Res Tes Active Infowar (turns) 3413 | . 276 . . . 952 . . . . 132 396 1076 581 . Sensors 952 | . . . . . 952 . . . . . . . . . Jamming 2185 | . . . . . . . . . . 132 396 1076 581 . ECM 276 | . 276 . . . . . . . . . . . . . Robot Analysis Total . | . . . . . . . . . . . . . . . Derelict Logs Recovered 3 | . . 1 . . . . 2 . . . . . . . Drone Launches . | . . . . . . . . . . . . . . . Drone Recoveries . | . . . . . . . . . . . . . . . Exploration | -11 -10 -10 -10 -9 -8 -7 -7 -7 -6 -6 -5 -4 -3 -3 ------------- Run | Yrd Mat Min Exi Min Mat Fac Low Low Fac DSF Fac Fac Res Tes Turns Passed 8809 | 55 569 497 577 65 1026 2070 1239 62 93 229 396 1076 604 251 Spaces Moved 3995 | 30 280 245 343 40 343 714 589 22 37 74 210 473 245 350 Core 20 | 3 . . . . . . . . . . . . 10 7 Treads 3158 | 27 280 245 343 40 288 714 589 22 37 74 210 289 . . Legs 458 | . . . . . 55 . . . . . . 184 219 . Wheels . | . . . . . . . . . . . . . . . Hover 260 | . . . . . . . . . . . . . 16 244 Flight 99 | . . . . . . . . . . . . . . 99 Fastest Speed 40 | 50 160 160 160 160 160 245 165 245 240 240 160 135 50 40 Average Speed 176 | 149 160 160 160 160 183 249 200 245 240 240 160 153 154 53 Slowest Speed 400 | 160 160 160 240 160 330 250 250 245 240 240 160 350 400 110 Overloaded Moves . | . . . . . . . . . . . . . . . Propulsion Burnouts . | . . . . . . . . . . . . . . . Robots Hopped 1 | . . . . . . . . . . . . . . 1 Potential Cave-ins . | . . . . . . . . . . . . . . . Cave-ins Triggered . | . . . . . . . . . . . . . . . Exploration Rate (%) 32 | 5 44 64 68 18 33 21 75 12 1 76 7 14 7 49 Regions Visited 14 Branch Regions 6 Pre-discovered Areas 1 | . . 1 . . . . . . . . . . . . Known Exits Taken 12 | . 1 1 1 1 1 1 1 1 1 . 1 1 1 . Unknown Exits Taken 1 | 1 . . . . . . . . . . . . . . Scrap Searched 4 | . . 1 . . . . 3 . . . . . . . Spaces Dug . | . . . . . . . . . . . . . . . Terrain Destroyed 196 | . . 2 . . . 34 54 . . . 5 62 39 . Melee . | . . . . . . . . . . . . . . . Projectile 48 | . . 2 . . . . . . . . 5 27 14 . AOE 148 | . . . . . . 34 54 . . . . 35 25 . Terrain Rammed . | . . . . . . . . . . . . . . . Walls Destroyed . | . . . . . . . . . . . . . . . Machines Disabled . | . . . . . . . . . . . . . . . Actions | -11 -10 -10 -10 -9 -8 -7 -7 -7 -6 -6 -5 -4 -3 -3 --------- Run | Yrd Mat Min Exi Min Mat Fac Low Low Fac DSF Fac Fac Res Tes Total 5246 | 37 375 304 377 41 605 950 623 26 41 115 237 701 411 403 Wait 563 | . 53 33 . . 106 158 2 . . 15 2 87 92 15 Move 3979 | 29 279 244 342 39 342 713 588 21 36 73 209 472 244 348 Hop 1 | . . . . . . . . . . . . . . 1 Pick Up 96 | 2 9 1 10 . 21 10 3 . . 7 1 22 3 7 Fast Attach 58 | 6 6 . 3 . 10 3 1 . . 3 1 8 10 7 Attach 73 | . 1 3 1 2 15 5 6 . 3 2 2 15 10 8 Detach 34 | . 3 . 6 . 6 4 2 . . 2 1 5 2 3 Swap 61 | . 2 . 3 . 10 12 1 3 2 2 4 14 8 . Drop 77 | . 7 . 12 . 14 12 4 . . 4 2 15 1 6 Fire 219 | . 5 23 . . 39 30 13 2 . 6 14 52 35 . Melee 73 | . 10 . . . 42 3 3 . . . . 5 4 6 Ram 2 | . . . . . . . . . . . . . . 2 Kick 8 | . . . . . . . . . . . . 6 2 . Crush 1 | . . . . . . . . . . . 1 . . . Escape Stasis . | . . . . . . . . . . . . . . . Rewire 1 | . . . . . . . . . . 1 . . . . Trap . | . . . . . . . . . . . . . . . Miscellaneous . | . . . . . . . . . . . . . . . Route ------- -11/Scrapyard -10/Materials -10/Mines (discovered 4 exits: *Mat x2 / *Exi / *Sub) -10/Exiles -9/Mines -8/Materials -7/Factory -7/Lower Caves -7/Lower Caves -6/Factory (discovered 3 exits: Low / Ext / DSF) -6/DSF -5/Factory -4/Factory -3/Research -3/Testing History --------- Turn | Location | Event 21 | -11/Scrapyard | Discovered new exit (range 16) 56 | -11/Scrapyard | Entered Materials 311 | -10/Materials | Build established: Mutant 316 | -10/Materials | Discovered new exit (range 12) 348 | -10/Materials | Repaired Hammer 624 | -10/Materials | Identified exit to Mines 625 | -10/Materials | Entered Mines 630 | -10/Mines | Discovered new exit (range 15) 651 | -10/Mines | Identified exit to Materials 969 | -10/Mines | Discovered exit to Materials (range 7) 1001 | -10/Mines | Discovered new exit (range 6) 1010 | -10/Mines | Identified exit to Subcaves 1061 | -10/Mines | Assembled infested the area 1066 | -10/Mines | Assisted by a Guerilla fighting off Assembled 1100 | -10/Mines | Core integrity fell below 50% 1106 | -10/Mines | Lost 3 allies 1115 | -10/Mines | Deemed a non-threat by the Exiles lab entrance 1115 | -10/Mines | Discovered new exit (range 5) 1120 | -10/Mines | Identified exit to Exiles 1122 | -10/Mines | Entered Exiles 1159 | -10/Exiles | Met 8R-AWN 1188 | -10/Exiles | Met EX-HEX 1249 | -10/Exiles | Met EX-DEC 1425 | -10/Exiles | Met EX-BIN 1447 | -10/Exiles | Aligned with FarCom system 1449 | -10/Exiles | Given EX-Vault access code 1487 | -10/Exiles | Opened EX-Vault 1500 | -10/Exiles | Found Prototype Storage 1500 | -10/Exiles | Identified Superbattery 1507 | -10/Exiles | Found Prototype Special Weapon 1507 | -10/Exiles | Identified Field Lobotomy Kit 1511 | -10/Exiles | Found Prototype Device 1511 | -10/Exiles | Identified Skeleton Box 1576 | -10/Exiles | Warned to stay clear of 0b10 Research branches 1680 | -10/Exiles | Discovered new exit (range 14) 1698 | -10/Exiles | Identified exit to Mines 1699 | -10/Exiles | Left Exiles lab with Field Lobotomy Kit 1699 | -10/Exiles | Entered Mines 1755 | -9/Mines | Discovered new exit (range 5) 1760 | -9/Mines | Identified exit to Materials 1764 | -9/Mines | Entered Materials 1764 | -8/Materials | Evolved 4 slots: Power x1, Utility x2, Weapon x1 2162 | -8/Materials | Lost 7 parts (3p2n2w) 2718 | -8/Materials | Core integrity fell below 50% 2762 | -8/Materials | Discovered new exit (range 8) 2788 | -8/Materials | Identified exit to Factory 2790 | -8/Materials | Entered Factory 2790 | -7/Factory | Evolved 2 slots: Utility x2 3071 | -7/Factory | Build established: Scavenger-Gunner 4838 | -7/Factory | Discovered new exit (range 13) 4858 | -7/Factory | Identified exit to Lower Caves 4860 | -7/Factory | Entered Lower Caves 4968 | -7/Lower Caves | Found DCF Scrap (17 items) 5010 | -7/Lower Caves | Learned location of 1 exit from Factory 5279 | -7/Lower Caves | Build established: Gunner 5365 | -7/Lower Caves | Attracted the attention of an 0b10 outpost 5408 | -7/Lower Caves | Assimilated B-48 Gladiator with FLK Orb 5433 | -7/Lower Caves | Lost 7 parts (1p3u3w) 5687 | -7/Lower Caves | Build established: Mutant 5924 | -7/Lower Caves | Discovered new exit (range 7) 5933 | -7/Lower Caves | Identified exit to Lower Caves 5983 | -7/Lower Caves | Core integrity fell below 50% 6099 | -7/Lower Caves | Entered another Lower Caves area 6099 | -7/Lower Caves | Accompanied by 1 ally 6101 | -7/Lower Caves | Assimilated H-55 Commando with FLK Orb 6112 | -7/Lower Caves | Discovered new exit (range 15) 6117 | -7/Lower Caves | Assimilated H-55 Commando with FLK Orb 6149 | -7/Lower Caves | Identified exit to Factory 6161 | -7/Lower Caves | Entered Factory 6161 | -6/Factory | Accompanied by 3 allies 6161 | -6/Factory | Evolved 2 slots: Utility x2 6162 | -6/Factory | Identified exit to Extension 6163 | -6/Factory | Identified exit to Lower Caves 6254 | -6/Factory | Identified exit to DSF 6254 | -6/Factory | Entered DSF 6254 | -6/DSF | Accompanied by 3 allies 6260 | -6/DSF | Assimilated X-67 Chaingunner with FLK Orb 6310 | -6/DSF | Assimilated H-61 Shepherd with FLK Orb 6321 | -6/DSF | Additional patrols routed to DSF 6411 | -6/DSF | Sterilization system engaged 6431 | -6/DSF | Ambient heat levels rising (+10) 6445 | -6/DSF | Discovered new exit (range 15) 6446 | -6/DSF | Ambient heat levels rising (+10) 6461 | -6/DSF | Ambient heat levels rising (+10) 6476 | -6/DSF | Ambient heat levels rising (+10) 6481 | -6/DSF | Identified exit to Factory 6483 | -6/DSF | Entered Factory 6483 | -5/Factory | Accompanied by 1 ally 6483 | -5/Factory | Evolved 2 slots: Propulsion x2 6672 | -5/Factory | Build established: Gunner 6855 | -5/Factory | Discovered new exit (range 16) 6877 | -5/Factory | Identified exit to Factory 6879 | -5/Factory | Entered another Factory area 6879 | -4/Factory | Evolved 2 slots: Utility x2 7181 | -4/Factory | Repaired Lrg. Storage Unit 7418 | -4/Factory | Fabricated Field Propulsion Array? 7922 | -4/Factory | Specialist reinforcements revealed to be Infiltrators 7950 | -4/Factory | P-70 Sage assimilated allied 16-Q02(x) 7950 | -4/Factory | Discovered new exit (range 4) 7954 | -4/Factory | Identified exit to Research 7955 | -4/Factory | Entered Research 7955 | -3/Research | Evolved 2 slots: Power x1, Utility x1 7985 | -3/Research | Lost 11 parts (1p6n3u1w) 8234 | -3/Research | Lost 6 parts (3n2u1w) 8474 | -3/Research | System corruption reached 10% 8551 | -3/Research | Discovered new exit (range 7) 8558 | -3/Research | Identified exit to Testing 8559 | -3/Research | Entered Testing 8560 | -3/Testing | Maximum security lockdown engaged 8570 | -3/Testing | Lost 19 parts (3p5n6u5w) 8771 | -3/Testing | Core integrity fell below 50% 8780 | -3/Testing | Spotted Executioner 8794 | -3/Testing | Core integrity fell below 20% 8802 | -3/Testing | Released all parts (3) 8810 | -3/Testing | Destroyed by S-43 Plague with Heavy Machine Gun Last Messages --------------- P-80 Master resets G-73 Enforcer, system corruption cleaned. Penetrated by Slug. Slug penetrates Scanalyzer. Segregator destroyed. Slug penetrates Wall. Penetrated by Slug. Slug penetrates Wall. P-80 Master resets G-73 Enforcer, system corruption cleaned. Slug penetrates Wall. Penetrated by Slug. Scanalyzer disabled. Slug penetrates Wall. Antigrav Array destroyed. Wall collapses. Released Imp. Signal Interpreter. Released Thunder Hammer. Released Antigrav Array. S-43 Plague destroyed. BGJMKEOW46OYVYKEG,OXU LY1NB P-80 Master resets G-73 Enforcer, system corruption cleaned. Map ----- +----------------------------------------------------+ | """"""" ####??????????????????????????????????? | | """"""" #?????????????????????????????????????? | | """"""" #?????????????????????????????????????? | | #?????????????????????????????????????? | | #?????????????????????????????????????? | | ??????????????????????????????????????? | | ??????????????????????????????????????? | | ########## ??????????????????????????????????????? | | ?????????? #?????????????????????????????????????? | | ?????????? #?????????????????????????????????????? | | ?????????? #?????????????????????????????????????? | | ?????????# #??##?????????????????????????????????? | | ????????# #? ??????????????????????????????????? | | ????????# "# ???????????????????????????????????? | | ????????#"%# ??????????????#?????????????????????? | | ######### "h?????????????? #??##?????????????????? | | # ##"%#????????????## ### h?????????????????? | | ## ## "#???????????# h??????Yw?????????? | | # ## ######+###### ?h?????Y?Y?????????? | | i"gh E g bb% #????????Y??????????? | | h%%gb g #?#p #???????????????????? | | ####"/#########?#l #???????????????????? | | # = p #?????#b """ #????????????????????? | | ## ## """bg #????## """ #????????????????????? | | ?##?# ""S""/ #????# g """ +????????????????????? | | ????# "" ""=gg###### s @ #????????????????????? | | ????# = + pseps= #?YY?Y???????????????? | | ?? + ###############?Y??????????????????? | | ??### ! /[ !#??????????????????????????????????? | | ????# [ #??????????????????????????????????? | | ????###########??????????????????????????????????? | | ?????????????????????????????????????????????????? | | ?????????????????????????????????????????????????? | | | | | | | | | | | | | | | | | | | | | | | | | | | | | | | | | | | +----------------------------------------------------+ Best States ------------- Heat Dissipation 115 Energy Generation 45 Energy Capacity 1525 Matter Stores 300 Matter Capacity 300 Sight Range 16 Robot Scan Range 14 Terrain Scan Density 10 ECM Strength 1 Jamming Range 12 Power Amplification 20 Armor Coverage 375 Resistance: TH 25 Weapon Cycling 25 Evasion (%) 62 Targeting Accuracy 8 Launcher Accuracy 30 Recoil Reduction 6 Kinecelleration 40 Trap Extractor Capacity 8 Item Schematics ----------------- None Robot Schematics ------------------ None Fabricated ------------ Field Propulsion Array | x1 | -4/Factory | Preloaded Repaired ---------- Hammer | 89% | -10/Materials Lrg. Storage Unit | 47% | -4/Factory Alien Tech Used ----------------- None Achievements -------------- Oh No You Don't! Challenges ------------ None Game ------ Seed SmallProtonKatana Manual? 0 Play Time 01:53:37 Cumulative 65.7 hours Start 2025.07.12 @ 19:01:36 End 2025.07.12 @ 22:09:25 Sessions 1 Manual Loads 0 Difficulty Rogue Special Mode None Game No. 53 Rogue 50 Adventurer 1 Explorer 2 Win Type - Total 0 Types 0/0/0/0/0/0/0/0/0/0 Lore% 22 Gallery% 40 Achievement% 31 Wizard Run 0 Options --------- Layout 0 ASCII 0 Keyboard 0 Movement Mouse Keybinds 0 Fullscreen 2 Font 24/Smallcaps Map View 76x50 Zoom Use 8% Tactical HUD 0 Map Filters NONE Filters NONE Steam 1 RUN: 67e24f14-fec6-4fb3-a788-2e2c0dfcf4f1